Workbook

Sheet 提前下达2024年省级衔接资金测算表
A1: 提前下达2024年省级财政衔接推进乡村振兴补助资金测算表
F2: 单位：万元
A3: 市 县 | B3: 合计 | C3: 巩固拓展脱贫攻坚成果同乡村振兴任务 | F3: 少数民族发展任务 | G3: 以工代赈任务
C4: 小计 | D4: 其中
D5: 巩固拓展脱贫攻坚成果同乡村振兴 | E5: 易地搬迁贴息资金
A6: 全 省 | B6: =B7+B18+B19+B23+B30+B39+B48+B56+B62+B71+B82+B91+B101+B111+B17 -> 504000 | C6: =C7+C18+C19+C23+C30+C39+C48+C56+C62+C71+C82+C91+C101+C111+C17 -> 497745 | D6: 495182 | E6: 2563 | F6: 1700 | G6: 4555
A7: 兰州市小计 | B7: =SUM(B8:B16) -> 19419 | C7: =SUM(C8:C16) -> 19214 | D7: 19206 | E7: 8 | F7: 100 | G7: 105
A8: 兰州市本级 | B8: =C8+F8+G8 -> 0 | C8: =D8+E8 -> 0 | F8: 0
A9: 永登县 | B9: 3605 | C9: =D9+E9 -> 3605 | D9: 3603 | E9: 2 | F9: 0 | G9: 0
A10: 榆中县 | B10: 3830 | C10: 3725 | D10: 3719 | E10: 6 | F10: 0 | G10: 105
A11: 皋兰县 | B11: 6446 | C11: 6446 | D11: 6446 | F11: 0 | G11: 0
A12: 城关区 | B12: 790 | C12: 790 | D12: 790 | F12: 0
A13: 七里河区 | B13: 1212 | C13: 1212 | D13: 1212 | E13: 0 | F13: 0
A14: 西固区 | B14: 849 | C14: 849 | D14: 849 | F14: 0
A15: 红古区 | B15: 1436 | C15: 1336 | D15: 1336 | F15: 100
A16: 安宁区 | B16: 1251 | C16: 1251 | D16: 1251
A17: 兰州新区 | B17: 1666 | C17: 1666 | D17: 1666 | F17: 0
A18: 嘉峪关市 | B18: 2374 | C18: 2374 | D18: 2374 | F18: 0
A19: 金昌市小计 | B19: =SUM(B20:B22) -> 13870 | C19: 13720 | D19: 13718 | E19: 2 | F19: 0 | G19: 150
A20: 金昌市本级 | B20: 0 | C20: 0 | F20: 0
A21: 永昌县 | B21: 11117 | C21: 10967 | D21: 10965 | E21: 2 | F21: 0 | G21: 150
A22: 金川区 | B22: 2753 | C22: 2753 | D22: 2753 | F22: 0
A23: 白银市小计 | B23: =SUM(B24:B29) -> 27543 | C23: 27243 | D23: 27009 | E23: 234 | F23: 0 | G23: 300
A24: 白银市本级 | B24: 0 | C24: 0
A25: 景泰县 | B25: 10160 | C25: 10060 | D25: 10027 | E25: 33 | G25: 100
A26: 靖远县 | B26: 5257 | C26: 5057 | D26: 4980 | E26: 77 | G26: 200
A27: 会宁县 | B27: 9405 | C27: 9405 | D27: 9373 | E27: 32 | G27: 0
A28: 平川区 | B28: 1343 | C28: 1343 | D28: 1304 | E28: 39 | G28: 0
A29: 白银区 | B29: 1378 | C29: 1378 | D29: 1325 | E29: 53 | G29: 0
A30: 天水市小计 | B30: =SUM(B31:B38) -> 63511 | C30: 62861 | D30: 62511 | E30: 350 | F30: 200 | G30: 450
A31: 天水市本级 | B31: 0 | C31: 0
A32: 清水县 | B32: 9509 | C32: 9359 | D32: 9342 | E32: 17 | G32: 150
A33: 秦安县 | B33: 9546 | C33: 9546 | D33: 9529 | E33: 17 | G33: 0
A34: 甘谷县 | B34: 13771 | C34: 13671 | D34: 13608 | E34: 63 | G34: 100
A35: 武山县 | B35: 10110 | C35: 10110 | D35: 10039 | E35: 71
A36: 张家川县 | B36: 6247 | C36: 5947 | D36: 5929 | E36: 18 | F36: 200 | G36: 100
A37: 秦州区 | B37: 7438 | C37: 7438 | D37: 7308 | E37: 130 | G37: 0
A38: 麦积区 | B38: 6890 | C38: 6790 | D38: 6756 | E38: 34 | G38: 100
A39: 酒泉市小计 | B39: =SUM(B40:B47) -> 21512 | C39: 20512 | D39: 20512 | E39: 0 | F39: 800 | G39: 200
A40: 酒泉市本级 | B40: 0 | C40: 0
A41: 肃州区 | B41: 6227 | C41: 6027 | D41: 6027 | F41: 0 | G41: 200
A42: 玉门市 | B42: 2388 | C42: 2188 | D42: 2188 | F42: 200
A43: 金塔县 | B43: 1764 | C43: 1764 | D43: 1764
A44: 瓜州县 | B44: 3032 | C44: 2632 | D44: 2632 | F44: 400
A45: 敦煌市 | B45: 5802 | C45: 5802 | D45: 5802
A46: 肃北县 | B46: 1234 | C46: 1134 | D46: 1134 | F46: 100
A47: 阿克塞县 | B47: 1065 | C47: 965 | D47: 965 | F47: 100
A48: 张掖市小计 | B48: =SUM(B49:B55) -> 27135 | C48: 26685 | D48: 26563 | E48: 122 | F48: 100 | G48: 350
A49: 张掖市本级 | B49: 0 | C49: 0
A50: 山丹县 | B50: 5950 | C50: 5800 | D50: 5756 | E50: 44 | G50: 150
A51: 民乐县 | B51: 4505 | C51: 4405 | D51: 4350 | E51: 55 | G51: 100
A52: 甘州区 | B52: 6278 | C52: 6278 | D52: 6278 | G52: 0
A53: 临泽县 | B53: 6479 | C53: 6479 | D53: 6466 | E53: 13
A54: 高台县 | B54: 2530 | C54: 2430 | D54: 2420 | E54: 10 | G54: 100
A55: 肃南县 | B55: 1393 | C55: 1293 | D55: 1293 | F55: 100 | G55: 0
A56: 武威市小计 | B56: =SUM(B57:B61) -> 37545 | C56: 36845 | D56: 36187 | E56: 658 | F56: 200 | G56: 500
A57: 武威市本级 | B57: 0 | C57: 0
A58: 民勤县 | B58: 11039 | C58: 11039 | D58: 11017 | E58: 22
A59: 古浪县 | B59: 10729 | C59: 10529 | D59: 10159 | E59: 370 | G59: 200
A60: 天祝县 | B60: 7403 | C60: 7053 | D60: 6845 | E60: 208 | F60: 200 | G60: 150
A61: 凉州区 | B61: 8374 | C61: 8224 | D61: 8166 | E61: 58 | G61: 150
A62: 定西市小计 | B62: =SUM(B63:B70) -> 57312 | C62: 57112 | D62: 56891 | E62: 221 | F62: 0 | G62: 200
A63: 定西市本级 | B63: 0 | C63: 0
A64: 安定区 | B64: 12881 | C64: 12781 | D64: 12699 | E64: 82 | G64: 100
A65: 通渭县 | B65: 9293 | C65: 9293 | D65: 9263 | E65: 30 | G65: 0
A66: 陇西县 | B66: 9848 | C66: 9848 | D66: 9795 | E66: 53 | G66: 0
A67: 渭源县 | B67: 7033 | C67: 7033 | D67: 7010 | E67: 23 | G67: 0
A68: 临洮县 | B68: 8629 | C68: 8629 | D68: 8611 | E68: 18 | G68: 0
A69: 漳县 | B69: 4535 | C69: 4535 | D69: 4529 | E69: 6 | G69: 0
A70: 岷县 | B70: 5093 | C70: 4993 | D70: 4984 | E70: 9 | G70: 100
A71: 陇南市小计 | B71: =SUM(B72:B81) -> 59425 | C71: 58625 | D71: 58295 | E71: 330 | F71: 200 | G71: 600
A72: 陇南市本级 | B72: =C72+F72+G72 -> 0 | C72: 0
A73: 成县 | B73: 4207 | C73: =D73+E73 -> 4207 | D73: 4147 | E73: 60 | G73: 0
A74: 文县 | B74: 5912 | C74: 5912 | D74: 5858 | E74: 54 | F74: 0 | G74: 0
A75: 康县 | B75: 10013 | C75: 9813 | D75: 9734 | E75: 79 | G75: 200
A76: 宕昌县 | B76: 7790 | C76: 7690 | D76: 7684 | E76: 6 | G76: 100
A77: 西和县 | B77: 9121 | C77: 9021 | D77: 8959 | E77: 62 | G77: 100
A78: 礼县 | B78: 7755 | C78: 7755 | D78: 7753 | E78: 2 | G78: 0
A79: 徽县 | B79: 3347 | C79: 3147 | D79: 3126 | E79: 21 | G79: 200
A80: 两当县 | B80: 3488 | C80: 3488 | D80: 3482 | E80: 6
A81: 武都区 | B81: 7792 | C81: 7592 | D81: 7552 | E81: 40 | F81: 200 | G81: 0
A82: 平凉市小计 | B82: =SUM(B83:B90) -> 35670 | C82: 34870 | D82: 34783 | E82: 87 | F82: 100 | G82: 700
A83: 平凉市本级 | B83: 0 | C83: 0
A84: 泾川县 | B84: 3053 | C84: 2953 | D84: 2932 | E84: 21 | F84: 100 | G84: 0
A85: 灵台县 | B85: 3930 | C85: 3830 | D85: 3818 | E85: 12 | G85: 100
A86: 崇信县 | B86: 6696 | C86: 6596 | D86: 6587 | E86: 9 | G86: 100
A87: 华亭市 | B87: 2671 | C87: 2471 | D87: 2462 | E87: 9 | G87: 200
A88: 庄浪县 | B88: 5618 | C88: 5618 | D88: 5608 | E88: 10 | G88: 0
A89: 静宁县 | B89: 6307 | C89: 6007 | D89: 5999 | E89: 8 | G89: 300
A90: 崆峒区 | B90: 7395 | C90: 7395 | D90: 7377 | E90: 18 | G90: 0
A91: 庆阳市小计 | B91: =SUM(B92:B100) -> 43846 | C91: 43646 | D91: 43437 | E91: 209 | F91: 0 | G91: 200
A92: 庆阳市本级 | B92: 0 | C92: 0
A93: 庆城县 | B93: 2994 | C93: 2994 | D93: 2983 | E93: 11 | G93: 0
A94: 镇原县 | B94: 5058 | C94: 5058 | D94: 5029 | E94: 29 | G94: 0
A95: 宁县 | B95: 5446 | C95: 5446 | D95: 5420 | E95: 26 | G95: 0
A96: 正宁县 | B96: 3529 | C96: 3529 | D96: 3528 | E96: 1 | G96: 0
A97: 合水县 | B97: 6935 | C97: 6835 | D97: 6827 | E97: 8 | G97: 100
A98: 华池县 | B98: 5670 | C98: 5670 | D98: 5636 | E98: 34 | G98: 0
A99: 环县 | B99: 8402 | C99: 8302 | D99: 8203 | E99: 99 | G99: 100
A100: 西峰区 | B100: 5812 | C100: 5812 | D100: 5811 | E100: 1
A101: 临夏州小计 | B101: =SUM(B102:B110) -> 64796 | C101: 64296 | D101: 64051 | E101: 245 | F101: 0 | G101: 500
A102: 临夏州本级 | B102: 0 | C102: 0
A103: 临夏市 | B103: 1778 | C103: 1778 | D103: 1778 | F103: 0 | G103: 0
A104: 临夏县 | B104: 12599 | C104: 12499 | D104: 12462 | E104: 37 | F104: 0 | G104: 100
A105: 积石山县 | B105: 8177 | C105: 8177 | D105: 8147 | E105: 30 | F105: 0 | G105: 0
A106: 永靖县 | B106: 3321 | C106: 3121 | D106: 3097 | E106: 24 | F106: 0 | G106: 200
A107: 和政县 | B107: 4888 | C107: 4788 | D107: 4777 | E107: 11 | F107: 0 | G107: 100
A108: 康乐县 | B108: 10768 | C108: 10768 | D108: 10758 | E108: 10 | F108: 0 | G108: 0
A109: 广河县 | B109: 8363 | C109: 8263 | D109: 8212 | E109: 51 | F109: 0 | G109: 100
A110: 东乡县 | B110: 14902 | C110: 14902 | D110: 14820 | E110: 82 | F110: 0 | G110: 0
A111: 甘南州小计 | B111: =SUM(B112:B120) -> 28376 | C111: 28076 | D111: 27979 | E111: 97 | F111: 0 | G111: 300
A112: 甘南州本级 | B112: 0 | C112: 0
A113: 夏河县 | B113: 4498 | C113: 4498 | D113: 4480 | E113: 18 | F113: 0 | G113: 0
A114: 临潭县 | B114: 4738 | C114: 4738 | D114: 4726 | E114: 12 | F114: 0 | G114: 0
A115: 卓尼县 | B115: 7614 | C115: 7514 | D115: 7497 | E115: 17 | F115: 0 | G115: 100
A116: 舟曲县 | B116: 3511 | C116: 3411 | D116: 3409 | E116: 2 | F116: 0 | G116: 100
A117: 迭部县 | B117: 2659 | C117: 2559 | D117: 2557 | E117: 2 | F117: 0 | G117: 100
A118: 碌曲县 | B118: 1077 | C118: 1077 | D118: 1077 | E118: 0 | F118: 0 | G118: 0
A119: 玛曲县 | B119: 2046 | C119: 2046 | D119: 2003 | E119: 43 | F119: 0
A120: 合作市 | B120: 2233 | C120: 2233 | D120: 2230 | E120: 3 | F120: 0 | G120: 0
